fUST/lending_fUST_20250809
["ID","MTS","AMOUNT","RATE_DAILY","PERIOD"]
[378044223,1754681440914,-712.35,0.0002449,3]
[378044225,1754681440924,-782.85,0.0002449,10]
[378044226,1754681440935,-4898.58,0.00024498,2]
[378044227,1754681440945,-460.0,0.00024498,2]
[378044228,1754681440954,-500.0,0.00024499,2]
[378044229,1754681440963,-500.0,0.00024499,2]
[378044230,1754681440972,-500.0,0.00024499,2]
[378044231,1754681440982,-500.0,0.00024499,2]
[378044232,1754681440991,-500.0,0.00024499,2]
[378044233,1754681440999,-500.0,0.00024499,2]
[378044234,1754681441008,-500.0,0.00024499,2]
[378044235,1754681441019,-500.0,0.00024499,2]
[378044236,1754681441029,-534.98088608,0.00024499,2]
[378044237,1754681441038,-500.0,0.00024499,7]
[378044238,1754681441047,-266.38691077,0.00024499,7]
[378044239,1754681441056,-151.0,0.00024499,7]
[378044240,1754681441065,-151.0,0.00024499,7]
[378044241,1754681441074,-1000.0,0.00024499,2]
[378044242,1754681441084,-1000.0,0.00024499,2]
[378044243,1754681441095,-1000.0,0.00024499,2]
[378044244,1754681441104,-1000.0,0.00024499,2]
[378044245,1754681441113,-1000.0,0.00024499,2]
[378044246,1754681441122,-1000.0,0.00024499,2]
[378044247,1754681441131,-1000.0,0.00024499,2]
[378044248,1754681441140,-1000.0,0.00024499,2]
[378044249,1754681441149,-1000.0,0.00024499,2]
[378044250,1754681441158,-1000.0,0.00024499,2]
[378044251,1754681441167,-1000.0,0.00024499,2]
[378044252,1754681441176,-1000.0,0.00024499,2]
[378044253,1754681441185,-1000.0,0.00024499,2]
[378044254,1754681441194,-1028.29261501,0.00024499,2]
[378044255,1754681441203,-272.66009295,0.00024499,7]
[378044256,1754681441213,-232.20185734,0.00024499,7]
[378044257,1754681441222,-500.0,0.00024499,7]
[378044258,1754681441232,-151.0,0.00024499,7]
[378044259,1754681441241,-151.0,0.00024499,7]
[378044260,1754681441251,-282.50751216,0.00024499,7]
[378044261,1754681441264,-151.0,0.00024499,7]
[378044262,1754681441273,-232.86435731,0.00024499,2]
[378044263,1754681441283,-500.0,0.00024499,7]
[378044264,1754681441293,-151.0,0.00024499,7]
[378044265,1754681441303,-151.0,0.00024499,7]
[378044266,1754681441312,-151.0,0.00024499,7]
[378044267,1754681441323,-241.99695447,0.00024499,7]
[378044268,1754681441333,-156.89978343,0.00024499,2]
[378044269,1754681441342,-500.0,0.00024499,7]
[378044270,1754681441351,-151.0,0.00024499,7]
[378044271,1754681441360,-151.0,0.00024499,2]
[378044272,1754681441369,-500.0,0.00024499,7]
[378044273,1754681441378,-159.25431418,0.00024499,7]
[378044274,1754681441388,-312670.88099755,0.000245,2]
[378044300,1754681720239,150.0,0.000224,2]
[378044301,1754681822296,160.0,0.000242,7]
[378044302,1754681899075,21899.44362612,0.0003163,30]
[378044303,1754681989271,250.0,0.00024034,2]
[378044304,1754682021485,150.0,0.000224,2]
[378044305,1754682057730,247.18105153,0.0002419,2]
[378044307,1754682263103,216.28342008,0.00024189,2]
[378044311,1754682468429,189.24799257,0.00024189,2]
[378044878,1754682678474,165.59199349,0.00024188,2]
[378044879,1754682702106,219.770831,0.00026525,30]
[378044880,1754682702407,219.770831,0.0002489,30]
[378044881,1754682771922,121423.67191335,0.00024,2]
[378044882,1754682884428,165.59199347,0.00024188,2]
[378044884,1754683080355,165.59199347,0.00024188,2]
[378044885,1754683265636,165.59199347,0.00024188,2]
[378044886,1754683305185,181.310935,0.00026627,30]
[378044887,1754683305542,181.310935,0.0002489,30]
[378044889,1754683435907,165.59199347,0.00024187,2]
[378044890,1754683557147,19716.93716956,0.00025,30]
[378044891,1754683601294,165.59199347,0.00024187,2]
[378044892,1754683751657,165.59199347,0.00024186,2]
[378044915,1754683837211,-460.0,0.00024285,2]
[378044916,1754683837233,-460.0,0.00024285,2]
[378044917,1754683837242,-460.0,0.00024285,2]
[378044918,1754683837251,-772.45,0.00024285,2]
[378044919,1754683837260,-131.06549225,0.00024285,2]
[378044920,1754683837272,-328.93450775,0.00024285,2]
[378044921,1754683837457,-300.0,0.00024285,2]
[378044922,1754683837467,-844.26,0.00024285,2]
[378044923,1754683837477,-460.0,0.00024285,2]
[378044924,1754683837486,-460.0,0.00024286,2]
[378044925,1754683837496,-356.80549225,0.00024286,2]
[378044926,1754683837510,-103.19450775,0.00024286,2]
[378044927,1754683837519,-460.0,0.00024286,2]
[378044928,1754683837530,-460.0,0.00024286,2]
[378044929,1754683837539,-460.0,0.00024286,2]
[378044930,1754683837549,-483.97,0.00024286,2]
[378044931,1754683837558,-460.0,0.00024286,2]
[378044932,1754683837568,-516.73,0.00024286,2]
[378044933,1754683837577,-460.0,0.00024286,2]
[378044934,1754683837587,-460.0,0.00024286,2]
[378044935,1754683837596,-460.0,0.00024286,2]
[378044936,1754683837606,-282.21,0.00024286,2]
[378044937,1754683837618,-460.0,0.00024286,2]
[378044938,1754683837627,-460.0,0.00024286,2]
[378044940,1754683837636,-460.0,0.00024286,2]
[378044942,1754683837646,-460.0,0.00024286,2]
[378044944,1754683837656,-460.0,0.00024286,2]
[378044946,1754683837666,-460.0,0.00024286,2]
[378044948,1754683837675,-460.0,0.00024286,2]
[378044950,1754683837685,-460.0,0.00024286,2]
[378044952,1754683837694,-287.18,0.00024286,2]
[378044954,1754683837704,-460.0,0.00024286,2]
[378044956,1754683837713,-460.0,0.00024286,2]
[378044958,1754683837722,-232.33820424,0.00024286,2]
[378044973,1754683838047,-227.66179576,0.00024286,2]
[378044974,1754683838056,-460.0,0.00024286,2]
[378044975,1754683838066,-460.0,0.00024286,2]
[378044976,1754683838076,-222.11232668,0.00024286,2]
[378045002,1754683841610,416.0433043,0.00023274,2]
[378045361,1754683903108,196.851873,0.00026631,30]
[378045362,1754683903418,196.851873,0.0002489,30]
[378045363,1754684054162,5000.0,0.00024184,2]
[378045364,1754684112437,210.33351284,0.00024187,2]
[378045365,1754684136002,153.00456721,0.000229,2]
[378045366,1754684328254,184.0418237,0.00024187,2]
[378045380,1754684437477,150.0,0.000229,2]
[378045387,1754684505639,185.603194,0.00026631,30]
[378045388,1754684505984,185.603194,0.0002489,30]
[378045389,1754684543217,161.03659579,0.00024186,2]
[378045395,1754684739312,150.0,0.0002279,2]
[378045396,1754684758730,161.03659572,0.00024186,2]
[378045405,1754684969006,161.03659572,0.00024186,2]
[378045428,1754685032296,-300.0,0.00024283,2]
[378045429,1754685032306,-261.0,0.00024283,2]
[378045430,1754685032316,-460.0,0.00024283,2]
[378045432,1754685032325,-464.28484874,0.00024284,2]
[378045434,1754685032334,-460.0,0.00024284,2]
[378045436,1754685032343,-460.0,0.00024284,2]
[378045438,1754685032353,-460.0,0.00024284,2]
[378045439,1754685032362,-460.0,0.00024284,2]
[378045440,1754685032372,-460.0,0.00024284,2]
[378045441,1754685032382,-809.09,0.00024284,2]
[378045442,1754685032391,-460.0,0.00024284,2]
[378045443,1754685032401,-460.0,0.00024284,2]
[378045444,1754685032411,-460.0,0.00024284,2]
[378045445,1754685032420,-460.0,0.00024284,2]
[378045446,1754685032429,-460.0,0.00024284,2]
[378045447,1754685032439,-460.0,0.00024284,2]
[378045448,1754685032449,-460.0,0.00024284,2]
[378045449,1754685032460,-460.0,0.00024284,2]
[378045450,1754685032470,-460.0,0.00024284,2]
[378045451,1754685032480,-460.0,0.00024284,2]
[378045452,1754685032489,-460.0,0.00024284,2]
[378045453,1754685032498,-460.0,0.00024284,2]
[378045454,1754685032508,-460.0,0.00024284,2]
[378045455,1754685032517,-460.0,0.00024284,2]
[378045456,1754685032526,-460.0,0.00024284,2]
[378045457,1754685032536,-460.0,0.00024284,2]
[378045458,1754685032545,-460.0,0.00024284,2]
[378045459,1754685032554,-318.45887208,0.00024284,2]
[378045460,1754685032564,-460.0,0.00024284,2]
[378045461,1754685032573,-460.0,0.00024284,2]
[378045462,1754685032582,-460.0,0.00024284,2]
[378045463,1754685032591,-460.0,0.00024284,2]
[378045464,1754685032600,-460.0,0.00024284,2]
[378045465,1754685032609,-460.0,0.00024284,2]
[378045466,1754685032619,-460.0,0.00024284,2]
[378045467,1754685032628,-460.0,0.00024284,2]
[378045468,1754685032637,-460.0,0.00024284,2]
[378045469,1754685032647,-460.0,0.00024284,2]
[378045470,1754685032656,-460.0,0.00024284,2]
[378045471,1754685032667,-460.0,0.00024284,2]
[378045472,1754685032676,-460.0,0.00024284,2]
[378045473,1754685032685,-740.26,0.00024284,2]
[378045474,1754685032695,-460.0,0.00024284,2]
[378045475,1754685032705,-460.0,0.00024284,2]
[378045476,1754685032716,-460.0,0.00024284,2]
[378045477,1754685032726,-684.84,0.00024284,2]
[378045478,1754685032735,-1306.84,0.00024284,2]
[378045479,1754685032745,-460.0,0.00024284,2]
[378045480,1754685032755,-460.0,0.00024284,2]
[378045481,1754685032764,-460.0,0.00024285,2]
[378045482,1754685032774,-460.0,0.00024285,2]
[378045483,1754685032783,-460.0,0.00024285,2]
[378045484,1754685032793,-460.0,0.00024285,2]
[378045485,1754685032803,-460.0,0.00024285,2]
[378045486,1754685032812,-460.0,0.00024285,2]
[378045487,1754685032821,-460.0,0.00024285,2]
[378045488,1754685032833,-460.0,0.00024285,2]
[378045489,1754685032843,-1262.32,0.00024285,2]
[378045490,1754685032852,-460.0,0.00024285,2]
[378045491,1754685032862,-743.28,0.00024285,2]
[378045492,1754685032871,-460.0,0.00024285,2]
[378045493,1754685032880,-460.0,0.00024285,2]
[378045494,1754685032890,-460.0,0.00024286,2]
[378045495,1754685032901,-460.0,0.00024286,2]
[378045496,1754685032911,-460.0,0.00024286,2]
[378045497,1754685032920,-500.0,0.00024291,2]
[378045498,1754685032931,-1643.10984728,0.000244,2]
[378045499,1754685032940,-632.73472628,0.00024473,2]
[378045500,1754685032950,-500.01894309,0.00024473,2]
[378045501,1754685032960,-495.25922998,0.00024473,2]
[378045502,1754685032970,-500.0,0.00024473,2]
[378045503,1754685032980,-500.0,0.00024473,2]
[378045504,1754685032991,-500.0,0.00024473,2]
[378045505,1754685033001,-500.0,0.00024473,2]
[378045506,1754685033010,-500.0,0.00024473,2]
[378045507,1754685033020,-500.0,0.00024473,2]
[378045508,1754685033029,-500.0,0.00024473,2]
[378045509,1754685033039,-500.0,0.00024473,2]
[378045510,1754685033048,-500.0,0.00024473,2]
[378045511,1754685033058,-500.0,0.00024473,2]
[378045512,1754685033068,-500.0,0.00024473,2]
[378045513,1754685033078,-151.0,0.00024485,2]
[378045514,1754685033087,-151.0,0.00024485,2]
[378045515,1754685033097,-151.0,0.00024485,2]
[378045516,1754685033106,-1612.65989929,0.00024485,2]
[378045517,1754685033116,-894.67,0.0002449,3]
[378045518,1754685033125,-447.33,0.0002449,3]
[378045519,1754685033135,-223.67,0.0002449,3]
[378045520,1754685033144,-671.01,0.0002449,3]
[378045521,1754685033154,-576.72833476,0.00024498,2]
[378045522,1754685033163,-500.0,0.00024498,2]
[378045523,1754685033173,-154.86697646,0.00024498,2]
[378045524,1754685033182,-178.94462431,0.00024499,2]
[378045525,1754685033192,-151.0,0.00024499,2]
[378045526,1754685033201,-151.0,0.00024499,2]
[378045527,1754685033211,-500.0,0.00024499,2]
[378045528,1754685033221,-500.0,0.00024499,2]
[378045529,1754685033231,-151.0,0.00024499,2]
[378045530,1754685033240,-151.0,0.00024499,2]
[378045531,1754685033253,-151.24896388,0.00024499,2]
[378045532,1754685033263,-151.0,0.00024499,2]
[378045533,1754685033273,-151.0,0.00024499,2]
[378045534,1754685033283,-151.0,0.00024499,2]
[378045535,1754685033293,-151.0,0.00024499,2]
[378045536,1754685033302,-151.0,0.00024499,2]
[378045537,1754685033311,-151.0,0.00024499,2]
[378045538,1754685033322,-500.0,0.00024499,7]
[378045539,1754685033332,-151.0,0.00024499,7]
[378045540,1754685033342,-151.0,0.00024499,2]
[378045541,1754685033351,-500.0,0.00024499,7]
[378045542,1754685033361,-500.0,0.00024499,7]
[378045543,1754685033370,-294.81336106,0.00024499,7]
[378045544,1754685033379,-151.0,0.00024499,7]
[378045545,1754685033388,-220.6710221,0.00024499,7]
[378045546,1754685033398,-4694.47,0.00024499,2]
[378045547,1754685033408,-151.0,0.00024499,7]
[378045548,1754685033418,-143547.53293686,0.000245,2]
[378045549,1754685033435,-7761.07929083,0.000245,2]
[378045580,1754685040372,-527.73001708,0.00024284,2]
[378045586,1754685046192,-247.63998292,0.00024284,2]
[378045588,1754685046202,-348.8420981,0.00024285,2]
[378045589,1754685046213,-111.1579019,0.00024285,2]
[378045590,1754685046222,-500.0,0.00024285,2]
[378045591,1754685046232,-151.0,0.00024499,7]
[378045592,1754685046244,-62.8420981,0.00024499,7]
[378045593,1754685046361,-119.37994053,0.00024499,7]
[378045594,1754685046371,-151.0,0.00024499,7]
[378045595,1754685046383,-32324.09286688,0.000245,2]
[378045596,1754685046392,-15955.73,0.000245,2]
[378045597,1754685046403,-59177.3241926,0.000245,2]
[378045598,1754685104931,164.536091,0.00026603,30]
[378045599,1754685105229,164.536091,0.0002489,30]
[378045600,1754685120191,531.74364107,0.00024184,2]
[378045612,1754685643989,902.5462132,0.00023445,2]
[378045615,1754685703213,160.252245,0.00026611,30]
[378045616,1754685703849,160.252245,0.0002489,30]
[378045627,1754686089125,306.3624203,0.00023468,2]
[378045638,1754686218712,1308.94545552,0.00024,2]
[378045690,1754686232533,-300.0,0.00024282,2]
[378045692,1754686232543,-1200.0,0.00024282,2]
[378045694,1754686232552,-200.83558333,0.00024283,2]
[378045699,1754686232592,-259.16441667,0.00024283,2]
[378045701,1754686232601,-148.55437953,0.00024283,2]
[378045966,1754686240506,-311.44562047,0.00024283,2]
[378045968,1754686240517,-460.0,0.00024283,2]
[378045970,1754686240526,-239.93842518,0.00024283,2]
[378045972,1754686240537,-80.6633727,0.00024283,2]
[378046258,1754686304026,182.907295,0.00026603,30]
[378046259,1754686304278,182.907295,0.0002489,30]
[378046260,1754686903226,150.898518,0.00026603,30]
[378046261,1754686904213,150.898518,0.0002489,30]
[378046283,1754687438657,-168.0,0.0002443,2]
[378046284,1754687438668,-300.0,0.00024468,2]
[378046285,1754687438677,-460.0,0.00024469,2]
[378046286,1754687438688,-460.0,0.00024469,2]
[378046287,1754687438697,-460.0,0.00024469,2]
[378046288,1754687438706,-427.3203943,0.00024469,2]
[378046289,1754687438724,-32.6796057,0.00024469,2]
[378046290,1754687438733,-460.0,0.00024469,2]
[378046291,1754687438742,-460.0,0.00024469,2]
[378046293,1754687438751,-460.0,0.00024469,2]
[378046294,1754687438762,-460.0,0.00024469,2]
[378046295,1754687438771,-577.54,0.00024469,2]
[378046296,1754687438781,-460.0,0.00024469,2]
[378046297,1754687438790,-1317.89,0.00024469,2]
[378046298,1754687438800,-460.0,0.00024469,2]
[378046299,1754687438809,-1430.28,0.00024469,2]
[378046300,1754687438818,-460.0,0.00024469,2]
[378046301,1754687438827,-460.0,0.00024469,2]
[378046302,1754687438837,-752.13,0.00024469,2]
[378046303,1754687438846,-460.0,0.00024469,2]
[378046304,1754687438855,-805.25,0.00024469,2]
[378046305,1754687438864,-460.0,0.00024469,2]
[378046306,1754687438873,-341.01764142,0.00024469,2]
[378046307,1754687438886,-118.98235858,0.00024469,2]
[378046308,1754687438895,-460.0,0.00024469,2]
[378046309,1754687438904,-770.12,0.00024469,2]
[378046310,1754687438914,-460.0,0.00024469,2]
[378046311,1754687438923,-460.0,0.00024469,2]
[378046312,1754687438932,-460.0,0.00024469,2]
[378046313,1754687438942,-460.0,0.00024469,2]
[378046314,1754687438955,-460.0,0.00024469,2]
[378046315,1754687438965,-460.0,0.0002447,2]
[378046316,1754687438975,-460.0,0.0002447,2]
[378046317,1754687438984,-282.9,0.0002447,2]
[378046318,1754687438994,-460.0,0.0002447,2]
[378046319,1754687439004,-460.0,0.0002447,2]
[378046320,1754687439014,-460.0,0.0002447,2]
[378046321,1754687439024,-460.0,0.0002447,2]
[378046322,1754687439033,-460.0,0.0002447,2]
[378046323,1754687439043,-460.0,0.0002447,2]
[378046324,1754687439052,-460.0,0.0002447,2]
[378046325,1754687439062,-460.0,0.0002447,2]
[378046326,1754687439071,-460.0,0.0002447,2]
[378046327,1754687439080,-460.0,0.0002447,2]
[378046328,1754687439090,-460.0,0.0002447,2]
[378046329,1754687439099,-460.0,0.0002447,2]
[378046330,1754687439109,-460.0,0.0002447,2]
[378046331,1754687439118,-460.0,0.0002447,2]
[378046332,1754687439127,-460.0,0.0002447,2]
[378046333,1754687439137,-460.0,0.0002447,2]
[378046334,1754687439147,-460.0,0.0002447,2]
[378046335,1754687439157,-460.0,0.0002447,2]
[378046336,1754687439167,-460.0,0.0002447,2]
[378046337,1754687439176,-550.52,0.0002447,2]
[378046338,1754687439185,-460.0,0.0002447,2]
[378046339,1754687439195,-491.81,0.0002447,2]
[378046340,1754687439205,-460.0,0.0002447,2]
[378046341,1754687439216,-460.0,0.0002447,2]
[378046342,1754687439226,-460.0,0.0002447,2]
[378046343,1754687439235,-460.0,0.0002447,2]
[378046344,1754687439245,-460.0,0.0002447,2]
[378046345,1754687439255,-460.0,0.0002447,2]
[378046346,1754687439266,-447.64775304,0.0002447,2]
[378046353,1754687442823,-0.00460531,0.00024469,2]
[378046356,1754687444950,-808.13539469,0.00024469,2]
[378046357,1754687444964,-12.35224696,0.0002447,2]
[378046358,1754687444973,-432.84272029,0.0002447,2]
[378046359,1754687445008,-27.15727971,0.0002447,2]
[378046360,1754687445017,-500.0,0.0002447,2]
[378046361,1754687445027,-460.0,0.0002447,2]
[378046362,1754687445038,-299.528462,0.0002447,2]
[378046363,1754687445047,-460.0,0.0002447,2]
[378046364,1754687445056,-460.0,0.0002447,2]
[378046365,1754687445066,-460.0,0.0002447,2]
[378046367,1754687445075,-460.0,0.0002447,2]
[378046369,1754687445085,-460.0,0.0002447,2]
[378046371,1754687445094,-460.0,0.00024471,2]
[378046372,1754687445103,-460.0,0.00024471,2]
[378046373,1754687445112,-500.0,0.00024473,2]
[378046374,1754687445123,-500.0,0.00024473,2]
[378046375,1754687445134,-500.0,0.00024473,2]
[378046376,1754687445143,-500.0,0.00024473,2]
[378046377,1754687445153,-616.23048361,0.00024473,2]
[378046378,1754687445162,-500.0,0.00024489,2]
[378046379,1754687445171,-500.0,0.00024489,2]
[378046380,1754687445180,-501.7886751,0.00024489,2]
[378046381,1754687445190,-185.01912515,0.00024489,2]
[378046383,1754687504163,163.832677,0.00026603,30]
[378046384,1754687504493,163.832677,0.0002489,30]
[378046386,1754687652439,150.0,0.00023839,2]
[378046387,1754687689083,245.61,0.00024057,2]
[378046388,1754687715734,156.480839,0.00025394,30]
[378046389,1754687726506,150.0,0.00023925,2]
[378046390,1754687759946,218.32,0.0002409,2]
[378046391,1754687830659,194.07,0.00024098,2]
[378046392,1754687901539,172.5,0.00024099,2]
[378046393,1754687971083,153.34,0.00024099,2]
[378046394,1754688013700,150.0,0.00023998,2]
[378046395,1754688105333,154.47081,0.00026603,30]
[378046396,1754688105627,154.47081,0.0002489,30]
[378046446,1754688636935,-460.0,0.00024469,2]
[378046448,1754688636948,-300.0,0.00024469,2]
[378046449,1754688636959,-390.07884141,0.0002447,2]
[378046555,1754688704663,149.927551,0.00026603,30]
[378046556,1754688704959,149.927551,0.0002489,30]
[378046557,1754688848184,250.0,0.00024141,2]
[378046558,1754689304135,149.927551,0.00026603,30]
[378046560,1754689427917,168.0,0.00024067,2]
[378046606,1754689832137,-863.9061306,0.00024297,2]
[378046626,1754689832649,-168.71095813,0.00024299,2]
[378046627,1754689832662,-21.9841824,0.00024299,2]
[378046628,1754689832672,-300.0,0.00024372,2]
[378046629,1754689832681,-300.0,0.00024372,2]
[378046630,1754689832692,-300.0,0.00024372,2]
[378046631,1754689832700,-300.0,0.00024372,2]
[378046632,1754689832710,-1200.0,0.00024372,2]
[378046633,1754689832719,-500.0,0.00024373,2]
[378046634,1754689832728,-500.0,0.00024373,2]
[378046635,1754689832737,-500.0,0.00024373,2]
[378046636,1754689832747,-500.0,0.00024373,2]
[378046637,1754689832756,-506.47691141,0.00024373,2]
[378046638,1754689832765,-500.0,0.00024373,2]
[378046639,1754689832775,-500.0,0.00024373,2]
[378046640,1754689832785,-459.0,0.00024395,2]
[378046641,1754689832795,-6011.93279955,0.00024396,2]
[378046642,1754689832805,-1262.98,0.00024396,2]
[378046643,1754689832815,-720.8,0.00024396,2]
[378046644,1754689832824,-460.0,0.00024396,2]
[378046645,1754689832834,-460.0,0.00024397,2]
[378046646,1754689832843,-460.0,0.00024397,2]
[378046647,1754689832852,-500.0,0.00024397,2]
[378046648,1754689832861,-500.0,0.00024397,2]
[378046649,1754689832870,-300.76624545,0.00024397,2]
[378046650,1754689832879,-465.22099106,0.00024397,2]
[378046651,1754689832888,-500.0,0.00024397,2]
[378046652,1754689832897,-213.8769661,0.00024397,2]
[378046653,1754689832906,-500.0,0.00024397,2]
[378046654,1754689832917,-500.0,0.00024397,2]
[378046655,1754689832926,-500.0,0.00024397,2]
[378046656,1754689832936,-500.0,0.00024397,2]
[378046657,1754689832945,-500.0,0.00024397,2]
[378046658,1754689832954,-500.0,0.00024397,2]
[378046659,1754689832963,-500.0,0.00024397,2]
[378046660,1754689832972,-500.0,0.00024397,2]
[378046661,1754689832981,-471.15494887,0.00024397,2]
[378046662,1754689832991,-500.0,0.00024397,2]
[378046663,1754689833000,-431.89013191,0.00024397,2]
[378046664,1754689833010,-500.0,0.00024397,2]
[378046665,1754689833019,-500.0,0.00024397,2]
[378046666,1754689833028,-500.0,0.00024397,2]
[378046667,1754689833038,-500.0,0.00024397,2]
[378046668,1754689833047,-500.0,0.00024397,2]
[378046669,1754689833056,-500.0,0.00024397,2]
[378046670,1754689833066,-523.74340098,0.00024397,2]
[378046671,1754689833075,-500.0,0.00024397,2]
[378046672,1754689833085,-500.0,0.00024397,2]
[378046673,1754689833094,-500.0,0.00024397,2]
[378046674,1754689833103,-500.0,0.00024397,2]
[378046675,1754689833113,-500.0,0.00024397,2]
[378046676,1754689833122,-500.0,0.00024397,2]
[378046677,1754689833131,-500.0,0.00024397,2]
[378046678,1754689833141,-357.63000101,0.00024397,2]
[378046679,1754689833151,-500.0,0.00024397,2]
[378046680,1754689833162,-500.0,0.00024397,2]
[378046681,1754689833171,-500.0,0.00024397,2]
[378046682,1754689833180,-500.0,0.00024397,2]
[378046683,1754689833190,-500.0,0.00024397,2]
[378046684,1754689833200,-500.0,0.00024397,2]
[378046685,1754689833211,-500.0,0.00024397,2]
[378046686,1754689833221,-500.0,0.00024397,2]
[378046687,1754689833231,-500.0,0.00024397,2]
[378046688,1754689833240,-500.0,0.00024397,2]
[378046689,1754689833249,-500.0,0.00024397,2]
[378046690,1754689833259,-500.0,0.00024397,2]
[378046691,1754689833268,-500.0,0.00024397,2]
[378046692,1754689833278,-500.0,0.00024397,2]
[378046693,1754689833291,-500.0,0.00024397,2]
[378046694,1754689833309,-500.0,0.00024397,2]
[378046695,1754689833318,-286.48412698,0.00024397,2]
[378046696,1754689833333,-248.59962281,0.00024397,2]
[378046697,1754689833351,-500.0,0.00024397,2]
[378046698,1754689833365,-500.0,0.00024397,2]
[378046699,1754689833374,-460.0,0.00024397,2]
[378046700,1754689833384,-460.0,0.00024397,2]
[378046701,1754689833393,-460.0,0.00024397,2]
[378046702,1754689833403,-608.95,0.00024397,2]
[378046703,1754689833413,-460.0,0.00024397,2]
[378046704,1754689833422,-570.57774657,0.00024397,2]
[378046705,1754689833432,-151.0,0.00024397,7]
[378046706,1754689833441,-151.0,0.00024397,7]
[378046707,1754689833451,-151.0,0.00024397,7]
[378046708,1754689833460,-151.0,0.00024397,7]
[378046709,1754689833470,-151.0,0.00024397,7]
[378046710,1754689833479,-151.0,0.00024397,7]
[378046711,1754689833488,-151.0,0.00024397,7]
[378046712,1754689833498,-151.0,0.00024397,7]
[378046713,1754689833507,-151.0,0.00024397,7]
[378046714,1754689833516,-460.0,0.00024397,2]
[378046715,1754689833526,-90.55345826,0.00024397,2]
[378046716,1754689833556,-462.91654174,0.00024397,2]
[378046717,1754689833566,-460.0,0.00024397,2]
[378046718,1754689833576,-151.0,0.00024397,7]
[378046719,1754689833586,-157.160852,0.00024397,7]
[378046720,1754689833595,-460.0,0.00024397,2]
[378046721,1754689833605,-460.0,0.00024397,2]
[378046722,1754689833616,-1370.68,0.00024397,2]
[378046723,1754689833627,-460.0,0.00024397,2]
[378046724,1754689833636,-460.0,0.00024397,2]
[378046725,1754689833645,-460.0,0.00024397,2]
[378046726,1754689833655,-460.0,0.00024397,2]
[378046727,1754689833666,-460.0,0.00024397,2]
[378046728,1754689833675,-771.7,0.00024397,2]
[378046729,1754689833685,-460.0,0.00024397,2]
[378046730,1754689833696,-460.0,0.00024397,2]
[378046731,1754689833705,-774.47,0.00024397,2]
[378046732,1754689833714,-738.04,0.00024397,2]
[378046733,1754689833723,-460.0,0.00024397,2]
[378046734,1754689833732,-460.0,0.00024397,2]
[378046735,1754689833742,-460.0,0.00024397,2]
[378046736,1754689833752,-460.0,0.00024397,2]
[378046737,1754689833761,-151.0,0.00024397,7]
[378046738,1754689833770,-151.0,0.00024397,7]
[378046739,1754689833780,-151.0,0.00024397,7]
[378046740,1754689833792,-151.0,0.00024398,7]
[378046741,1754689833803,-151.0,0.00024398,7]